Cogmind - Beta 13 @@@ ROGUE MODE // 2024.04.22 @ 22:37:30 Player: Gargash Result: Destroyed by G-67 Veteran with Plasma Rifle Performance ------------- Evolutions (6) 3000 Regions Visited (9) 1800 Robots Destroyed (96) 480 Value Destroyed (4091) 4091 Prototype IDs (7) 140 Alien Tech Used (0) 0 Bonus (137) 137 TOTAL SCORE: 9648 Bonus ------- High Alert Combat Kills 28 Follower Combat Kills 120 Friendly Fire -11 Cogmind --------- Core Integrity 0/1150 Matter 268/300 Energy 70/150 System Corruption 39% Temperature Cool (41) Movement Core (450) Ox8 Location -4/Factory Parts ------- > --- POWER (2) -------- Micro Fission Core Improved Fusion Compressor > --- PROPULSION (7) --- (None) > --- UTILITY (7) ------ Medium Storage Unit > --- WEAPON (3) ------- Plasma Rifle > --- INVENTORY (10) --- Advanced Weight Redist. System Peak State ------------ > --- POWER ------------ Angular Momentum Engine Light Antimatter Reactor > --- PROPULSION ------- Advanced Medium Treads Carbon-fiber Leg Enhanced Armored Leg Myomer Leg Gravmag System Nuclear Pulse Array > --- UTILITY ---------- Advanced Heat Sink Advanced Heat Sink Medium Storage Unit Improved Energy Well Advanced Weight Redist. System Cloaking Device Improved Light Armor Plating > --- WEAPON ----------- Compact Ion Cannon Neutron Cannon Mass Driver > --- INVENTORY -------- Advanced Heat Sink Medium Storage Unit Energy Well Advanced ECM Suite Wave Gun HERF Cannon HERF Cannon HERF Cannon Heavy Phase Cannon Coil Gun [Rating: 105] Favorites ----------- Power Angular Momentum Engine Engine Angular Momentum Engine Power Core Light Nuclear Core Reactor Light Antimatter Reactor Propulsion Aluminum Leg Treads Light Treads Leg Aluminum Leg Wheel Wheel Hover Unit Antigrav System Flight Unit Nuclear Pulse Array Utility Medium Storage Unit Device Improved Heat Sink Storage Medium Storage Unit Hackware Makeshift Hacking Suite Protection Improved Light Armor Plating Weapon Compact Ion Cannon Energy Gun Beamcaster Energy Cannon Compact Ion Cannon Ballistic Gun Gauss Rifle Ballistic Cannon Mass Driver Launcher Heavy Missile Launcher Special Weapon Mining Laser Build | -11 -10 -10 -8 -7 -6 -5 -5 -5 -4 ------- Run | Yrd Mat Sub Mat Fac Fac Fac Upp Upp Fac Slots Evolved 12 | . . . 4 2 2 2 . . 2 Power 1 | . . . . 1 . . . . . Propulsion 5 | . . . 2 . 1 . . . 2 Utility 5 | . . . 1 1 1 2 . . . Weapon 1 | . . . 1 . . . . . . Parts Attached 211 | 7 6 10 12 47 6 41 27 1 54 Power 26 | 2 . 2 . 6 3 5 1 . 7 Engine 15 | 2 . 1 . 2 3 3 1 . 3 Core 10 | . . 1 . 4 . 2 . . 3 Reactor 1 | . . . . . . . . . 1 Propulsion 57 | 2 2 4 3 7 1 14 5 . 19 Treads 4 | . . . . 1 . . . . 3 Leg 28 | 2 2 4 3 6 1 2 3 . 5 Wheel 11 | . . . . . . 6 2 . 3 Hover 11 | . . . . . . 6 . . 5 Flight 3 | . . . . . . . . . 3 Utility 70 | 1 2 . 5 18 2 14 14 1 13 Device 34 | . 1 . 2 8 1 8 8 1 5 Storage 12 | 1 1 . . 1 . 2 3 . 4 Processor . | . . . . . . . . . . Hackware 1 | . . . . . . . 1 . . Protection 23 | . . . 3 9 1 4 2 . 4 Artifact . | . . . . . . . . . . Weapon 58 | 2 2 4 4 16 . 8 7 . 15 Energy Gun 22 | 2 1 3 2 5 . 2 1 . 6 Energy Cannon 13 | . . . 1 2 . 2 3 . 5 Ballistic Gun 9 | . . . 1 5 . 2 . . 1 Ballistic Cannon 6 | . . . . . . 1 2 . 3 Launcher 5 | . . . . 3 . 1 1 . . Special Weapon 3 | . 1 1 . 1 . . . . . Impact Weapon . | . . . . . . . . . . Slashing Weapon . | . . . . . . . . . . Piercing Weapon . | . . . . . . . . . . Special Melee Weapon . | . . . . . . . . . . Unidentified Prototypes 7 | . . . . . . 5 . . 2 Corrupted Parts 1 | . . . . . . . . . 1 System Corruption 10 | . . . . . . . . . 10 Parts Lost 61 | . 1 . . 6 . 6 8 . 40 Power 6 | . . . . 1 . . 1 . 4 Propulsion 26 | . . . . 2 . 3 3 . 18 Utility 14 | . . . . 2 . 1 2 . 9 Weapon 15 | . 1 . . 1 . 2 2 . 9 Highest Loss Streak 27 | . 1 . . 4 . 3 8 . 27 To Critical Strikes . | . . . . . . . . . . Average Slot Usage (%) 95 | . 94 100 97 99 100 96 97 100 88 Engine 6 | . 14 12 . 5 6 7 10 11 3 Core 3 | . . 1 9 9 7 2 . . 1 Treads 1 | . . . . 2 . . . . 3 Leg 20 | . 28 28 34 26 33 18 9 11 13 Wheel 3 | . . . . . . 1 18 17 4 Hover 2 | . . . . . . 6 . . 3 Device 13 | . 10 14 7 7 13 16 18 23 17 Storage 9 | . 14 14 9 7 6 5 12 11 11 Protection 9 | . . . 9 14 13 15 5 5 4 Energy Gun 8 | . 26 26 24 13 6 2 . . . Energy Cannon 5 | . . . . 1 6 6 13 11 8 Ballistic Gun 3 | . . . . 6 6 5 . . . Ballistic Cannon 1 | . . . . . . . 2 5 5 Naked Turns . | . . . . . . . . . . Heaviest Build 90 | 14 20 23 42 46 59 90 83 74 82 Greatest Support 90 | 20 20 25 45 45 55 65 71 45 90 Greatest Overweight (x) 26 | . . . . 1 1 5 1 1 26 Average Overweight (x) . | . . . . . . 1 1 1 1 Largest Inventory Capacity 10 | 8 10 10 10 10 10 10 10 10 10 Average Capacity 9 | 7 8 10 10 10 10 10 10 10 10 Most Carried 10 | 5 9 10 10 10 10 10 10 10 10 Average Carried 8 | 3 7 9 8 9 9 9 6 10 9 Final Capacity 10 | 8 10 10 10 10 10 10 10 10 10 Final Carried 10 | 4 9 10 10 10 10 10 10 10 1 Class Distribution -------------------- 84% | Scavenger-Tank 11% | Mutant Dominant Class ---------------- Mutant | -10/Materials Mutant | -10/Subcaves Scavenger-Tank | -8/Materials Scavenger-Tank | -7/Factory Scavenger-Tank | -6/Factory Scavenger-Tank | -5/Factory Scavenger-Tank | -5/Upper Caves Scavenger-Tank | -5/Upper Caves Scavenger-Tank | -4/Factory Resources | -11 -10 -10 -8 -7 -6 -5 -5 -5 -4 ----------- Run | Yrd Mat Sub Mat Fac Fac Fac Upp Upp Fac Matter Collected 3450 | 219 101 110 60 645 . 864 294 . 1157 Remotely 55 | . . . . . . . 55 . . Salvage Created 4396 | . 238 181 109 609 . 1106 477 . 1676 Parts 191 | . 10 14 10 22 . 59 16 . 60 Haulers Intercepted . | . . . . . . . . . . Recyclers Shooed 4 | . . . . 1 . 1 . . 2 Parts Field Recycled . | . . . . . . . . . . Retrieved Matter . | . . . . . . . . . . Parts Self-Destructed 14 | . . 8 . . . . 6 . . Prevented 2 | . . . . . . . 2 . . Kills | -11 -10 -10 -8 -7 -6 -5 -5 -5 -4 ------- Run | Yrd Mat Sub Mat Fac Fac Fac Upp Upp Fac Combat Hostiles Destroyed 70 | . 5 4 4 10 . 16 9 . 22 Guns 35 | . 4 4 4 9 . 10 . . 4 Cannons 25 | . . . . 1 . 6 4 . 14 AOE 7 | . 1 . . . . . 5 . 1 Classes Destroyed 13 | . 5 1 1 2 . 3 1 . . Worker 5 | . . . . . . 2 . . 3 Builder 6 | . 1 . . . . 3 . . 2 Recycler 9 | . 1 . . 3 . 2 . . 3 Operator 2 | . . . . . . 1 . . 1 Watcher 4 | . 1 . . . . 1 . . 2 Swarmer 13 | . 3 . 3 3 . 3 . . 1 Grunt 20 | . 2 2 . 1 . 2 3 . 10 Brawler 2 | . . . . . . . 2 . . Duelist 5 | . . . . . . 3 2 . . Sentry 8 | . . . 1 3 . 1 2 . 1 Hunter 3 | . . . . 1 . . . . 2 Programmer 17 | . . . . 2 . 7 . . 8 Subdweller 2 | . . 2 . . . . . . . Best Kill Streak 6 | . 3 2 4 3 . 6 6 . 5 Combat Bots Only 6 | . 3 2 4 3 . 3 6 . 3 Max Kills in Single Turn 3 | . 2 2 1 1 . 3 2 . 2 Gunslinging . | . . . . . . . . . . Exploded 2 | . 1 . . . . . 2 . 1 Melee . | . . . . . . . . . . Uniques/NPCs Destroyed . | . . . . . . . . . . Combat | -11 -10 -10 -8 -7 -6 -5 -5 -5 -4 -------- Run | Yrd Mat Sub Mat Fac Fac Fac Upp Upp Fac Hostile Shots Fired 726 | . 24 5 9 152 . 112 64 . 360 Missed 201 | . 3 . 1 62 . 26 19 . 90 Damage Taken 10875 | . 209 156 87 1008 . 2377 1130 . 5908 Core 1618 | . 9 28 19 90 . 200 103 . 1169 Absorbed by Shields . | . . . . . . . . . . Redirected to Shielding 127 | . . . . 127 . . . . . Ignored by Resistances 75 | . . . . . . . . . 75 Regen/Repaired (Parts) 238 | . . . 56 182 . . . . . Core Remaining (%) 89 | 100 . 85 96 87 100 . . 69 . Volleys Fired 250 | . 27 18 5 47 . 46 16 . 91 Largest 3 | . 2 2 3 3 . 3 3 . 3 Hottest 249 | . 150 140 170 220 . 240 249 . 244 Shots Fired 672 | . 54 36 15 127 . 135 46 . 259 Gun 312 | . 49 31 15 110 . 61 3 . 43 Cannon 331 | . . . . 4 . 71 40 . 216 Launcher 9 | . . . . 3 . 3 3 . . Special 20 | . 5 5 . 10 . . . . . Kinetic 178 | . . . . 29 . 51 1 . 97 Thermal 358 | . 32 18 10 79 . 69 31 . 119 Explosive 9 | . . . . 3 . 3 3 . . Electromagnetic 127 | . 22 18 5 16 . 12 11 . 43 Robot Hit Streak 26 | . 5 8 8 10 . 11 26 . 17 Robot Miss Streak 9 | . 5 3 2 9 . 4 2 . 4 Penetration Max 1 | . . . . . . 1 . . . Secondary Targets 1 | . . . . 1 . . . . . Max Gunslinging Chain 1 | . . . . 1 . . . . . Shots Hit Robots 398 | . 18 18 7 66 . 90 37 . 162 Core Hits 195 | . 9 7 6 35 . 57 19 . 62 Critical Kills 3 | . . . . . . 1 . . 2 Critical Parts Destroyed . | . . . . . . . . . . Critical Strikes 17 | . 1 1 . 3 . 1 . . 11 Burn 3 | . 1 . . 2 . . . . . Meltdown 2 | . . . . . . . . . 2 Destroy 1 | . . . . . . 1 . . . Blast 8 | . . . . . . . . . 8 Corrupt 3 | . . 1 . 1 . . . . 1 Melee Attacks . | . . . . . . . . . . Impact . | . . . . . . . . . . Slashing . | . . . . . . . . . . Piercing . | . . . . . . . . . . Sneak Attacks . | . . . . . . . . . . Combat Hostiles . | . . . . . . . . . . Follow-up Attacks . | . . . . . . . . . . Damage Inflicted 11987 | . 321 231 100 1286 . 3032 1617 . 5400 Guns 3514 | . 221 231 100 1216 . 902 59 . 785 Cannons 7183 | . . . . 70 . 1519 1006 . 4588 Explosions 1239 | . 76 . . . . 611 552 . . Melee . | . . . . . . . . . . Ramming 27 | . . . . . . . . . 27 Kinetic 3151 | . . . . 353 . 948 31 . 1819 Thermal 6536 | . 213 122 56 870 . 1822 819 . 2634 Explosive 682 | . . . . . . 130 552 . . Electromagnetic 1591 | . 108 109 44 63 . 132 215 . 920 Impact . | . . . . . . . . . . Slashing . | . . . . . . . . . . Piercing . | . . . . . . . . . . Highest Corruption 39 | . . . . . . 8 5 5 39 Average Corruption 5 | . . . . . . 4 4 5 7 Corruption Purged 7 | . . . . . . 7 . . . Corruption Blocked . | . . . . . . . . . . Effects 87 | . . . . . . 36 27 1 23 Message Errors 21 | . . . . . . 8 6 1 6 Matter Fused 23 | . . . . . . 9 8 . 6 Heat Flow Errors 9 | . . . . . . 2 5 . 2 Energy Discharges 10 | . . . . . . 4 2 . 4 Parts Fused 2 | . . . . . . 2 . . . Data Loss (minor) 10 | . . . . . . 6 4 . . Data Loss (major) 4 | . . . . . . . 1 . 3 Misfires 2 | . . . . . . 2 . . . Weapon Failures 6 | . . . . . . 3 1 . 2 Overload Shots . | . . . . . . . . . . Overflow Damage 518 | . 13 . . . . 192 34 . 279 Projectiles 351 | . . . . . . 51 28 . 272 Explosions 160 | . 13 . . . . 141 6 . . Melee 7 | . . . . . . . . . 7 Knockbacks 19 | . . . . . . 4 . . 15 Impact . | . . . . . . . . . . Kinetic 19 | . . . . . . 4 . . 15 Secondary . | . . . . . . . . . . Self-Inflicted Damage 471 | . 33 . . . . 290 135 . 13 Shots 9 | . 1 . . . . 5 3 . . Rammed 1 | . . . . . . . . . 1 Targets Rammed 1 | . . . . . . . . . 1 Kicked . | . . . . . . . . . . Crushed . | . . . . . . . . . . Highest Temperature 751 | . 270 30 195 506 . 233 464 . 751 Average Temperature 143 | . 105 26 86 163 . 83 148 . 178 Received Heat Transfer 1288 | . 30 54 18 198 . 156 135 . 697 Effects 54 | . 2 . . 10 . . 3 . 39 Shutdowns 17 | . . . . 5 . . 2 . 10 Energy Bleed 3 | . . . . . . . . . 3 Interference 8 | . 2 . . . . . . . 6 Matter Decay 1 | . . . . 1 . . . . . Short Circuit 7 | . . . . 1 . . . . 6 Damage (minor) 7 | . . . . 3 . . 1 . 3 Damage (major) 8 | . . . . . . . . . 8 Damage (core) 3 | . . . . . . . . . 3 Siege Activations . | . . . . . . . . . . Robots Corrupted 1 | . . . . . . . . . 1 Combat Hostiles 1 | . . . . . . . . . 1 Parts Fried 6 | . . . . . . . 1 . 5 Impact Corruptions 1 | . . . . . . . . . 1 Robots Melted 2 | . . . . . . . . . 2 Combat Hostiles 2 | . . . . . . . . . 2 Parts Melted 18 | . 4 1 . 8 . . . . 5 Heat Transferred 8005 | . 557 333 111 1739 . 2079 518 . 2668 Parts Sabotaged . | . . . . . . . . . . Parts Stolen . | . . . . . . . . . . Parts Stripped . | . . . . . . . . . . Power Chain Reactions 1 | . 1 . . . . . . . . Alert | -11 -10 -10 -8 -7 -6 -5 -5 -5 -4 ------- Run | Yrd Mat Sub Mat Fac Fac Fac Upp Upp Fac Peak Influence 655 | . 117 . 185 239 . 655 . . 367 Initial 105 | . . . 39 84 . . . . 105 Average 115 | . 67 . 142 78 . 148 . . 146 Maximum Alert Level 2 | . . . . 1 . 2 . . 1 Low Security (%) 79 | 100 100 . 100 88 100 55 . . 85 Level 1 18 | . . . . 11 . 38 . . 14 Level 2 1 | . . . . . . 5 . . . Level 3 . | . . . . . . . . . . Level 4 . | . . . . . . . . . . Level 5 . | . . . . . . . . . . High Security . | . . . . . . . . . . Max Security . | . . . . . . . . . . Squads Dispatched 22 | . 1 . . 5 . 7 . . 9 Investigation 1 | . 1 . . . . . . . . Extermination 12 | . . . . 3 . 5 . . 4 Reinforcement 9 | . . . . 2 . 2 . . 5 Assault . | . . . . . . . . . . Garrison . | . . . . . . . . . . Intercept . | . . . . . . . . . . Searches Triggered . | . . . . . . . . . . Construction Impeded 2 | . . . . . . . . . 2 Haulers Reinforced 1 | . . . . . . . . . 1 Active Scanning Responses . | . . . . . . . . . . Cargo Convoy Interrupts . | . . . . . . . . . . Stealth | -11 -10 -10 -8 -7 -6 -5 -5 -5 -4 --------- Run | Yrd Mat Sub Mat Fac Fac Fac Upp Upp Fac Distress Signals 6 | . 1 . . 1 . 1 . . 3 Communications Jammed . | . . . . . . . . . . Distress Signals . | . . . . . . . . . . Times Spotted 125 | . 7 8 6 17 . 21 12 . 54 Peak Tracking Total 9 | . 3 5 4 3 . 5 7 . 9 Tactical Retreats 12 | . . 1 1 1 . . 3 . 6 Traps | -11 -10 -10 -8 -7 -6 -5 -5 -5 -4 ------- Run | Yrd Mat Sub Mat Fac Fac Fac Upp Upp Fac Traps Triggered 3 | . 1 . . 1 . . . . 1 Indirectly . | . . . . . . . . . . Trap Hack Attempts . | . . . . . . . . . . Triggered . | . . . . . . . . . . Disarmed . | . . . . . . . . . . Reprogrammed . | . . . . . . . . . . Reused . | . . . . . . . . . . Traps Extracted . | . . . . . . . . . . Installed . | . . . . . . . . . . Triggered . | . . . . . . . . . . Machines | -11 -10 -10 -8 -7 -6 -5 -5 -5 -4 ---------- Run | Yrd Mat Sub Mat Fac Fac Fac Upp Upp Fac Machines Disabled 15 | . 1 . 1 . . 11 . . 2 Max in Single Turn 4 | . 1 . 1 . . 4 . . 1 Machines Repaired . | . . . . . . . . . . Machines Dismantled . | . . . . . . . . . . Machines Sabotaged . | . . . . . . . . . . Overloaded Fab Kills . | . . . . . . . . . . Hacking | -11 -10 -10 -8 -7 -6 -5 -5 -5 -4 --------- Run | Yrd Mat Sub Mat Fac Fac Fac Upp Upp Fac Machines Accessed 24 | . 3 . 2 6 . 4 1 . 8 Terminals 13 | . 2 . . 3 . 3 . . 5 Fabricators 1 | . . . . 1 . . . . . Repair Stations 4 | . . . 1 2 . . . . 1 Recycling Units 2 | . 1 . . . . . . . 1 Scanalyzers 3 | . . . 1 . . 1 . . 1 Garrison Access . | . . . . . . . . . . Total Hacks 53 | . 7 . 4 20 . 5 1 . 16 Successful 31 | . 3 . 4 14 . 2 1 . 7 Failed 22 | . 4 . . 6 . 3 . . 9 Catastrophic 4 | . . . . 2 . 1 . . 1 Database Lockouts . | . . . . . . . . . . Manual 18 | . 2 . . 5 . 5 . . 6 Terminals 24 | . 5 . . 6 . 3 . . 10 Fabricators 2 | . . . . 2 . . . . . Repair Stations 16 | . . . 2 12 . . . . 2 Recycling Units 3 | . 2 . . . . . . . 1 Scanalyzers 7 | . . . 2 . . 2 . . 3 Garrison Access . | . . . . . . . . . . Terminal Hacks 8 | . 2 . . 2 . . 1 . 3 Record 3 | . . . . 1 . . . . 2 Robot Analysis 1 | . 1 . . . . . . . . Open Door 1 | . . . . . . . 1 . . Open DSF 2 | . . . . 1 . . . . 1 Zone Layout 1 | . 1 . . . . . . . . Fabricator Hacks 2 | . . . . 2 . . . . . Network Status 1 | . . . . 1 . . . . . Build 1 | . . . . 1 . . . . . Repair Station Hacks 12 | . . . 2 9 . . . . 1 Scan Component 8 | . . . 1 6 . . . . 1 Repair 4 | . . . 1 3 . . . . . Recycling Unit Hacks 1 | . 1 . . . . . . . . Retrieve Components 1 | . 1 . . . . . . . . Scanalyzer 5 | . . . 2 . . 1 . . 2 Insert Component 3 | . . . 1 . . 1 . . 1 Analyze 2 | . . . 1 . . . . . 1 Garrison Access Hacks . | . . . . . . . . . . Unauthorized Hacks 3 | . . . . 1 . 1 . . 1 Terminals 3 | . . . . 1 . 1 . . 1 Assimilate 3 | . . . . 1 . 1 . . 1 Fabricators . | . . . . . . . . . . Repair Stations . | . . . . . . . . . . Recycling Units . | . . . . . . . . . . Scanalyzers . | . . . . . . . . . . Garrison Access . | . . . . . . . . . . Data Cores Recovered 2 | . . . . . . 1 . . 1 Used 1 | . . . . . . . . . 1 Hacking Detections 19 | . 1 . 1 6 . 4 . . 7 Full Trace Events . | . . . . . . . . . . Feedback Events . | . . . . . . . . . . Feedback Blocked . | . . . . . . . . . . Robot Schematics Acquired . | . . . . . . . . . . Robots Built 4 | . . . . 4 . . . . . Authchips . | . . . . . . . . . . Time 134 | . . . . 134 . . . . . Total Robot Build Rating 16 | . . . . 16 . . . . . Part Schematics Acquired 2 | . . . 1 . . . . . 1 Parts Built . | . . . . . . . . . . Authchips . | . . . . . . . . . . Time . | . . . . . . . . . . Total Part Build Rating . | . . . . . . . . . . Parts Repaired 4 | . . . 1 3 . . . . . Time 109 | . . . 38 71 . . . . . Parts Recycled . | . . . . . . . . . . Recycled Matter . | . . . . . . . . . . Retrieved Matter . | . . . . . . . . . . Retrieved Components 5 | . 5 . . . . . . . . Parts Scanalyzed 3 | . . . 1 . . 1 . . 1 Part Schematics Acquired 2 | . . . 1 . . . . . 1 Parts Damaged . | . . . . . . . . . . Bothacking | -11 -10 -10 -8 -7 -6 -5 -5 -5 -4 ------------ Run | Yrd Mat Sub Mat Fac Fac Fac Upp Upp Fac Used RIF Installer . | . . . . . . . . . . Robots Hacked . | . . . . . . . . . . Non-combat . | . . . . . . . . . . Combat . | . . . . . . . . . . Robot Hacks Applied . | . . . . . . . . . . Relay Couplers Released . | . . . . . . . . . . Fabnet Peak Effective % . | . . . . . . . . . . Robots Rewired . | . . . . . . . . . . Allies Hacked . | . . . . . . . . . . Hacks Repelled . | . . . . . . . . . . Allies | -11 -10 -10 -8 -7 -6 -5 -5 -5 -4 -------- Run | Yrd Mat Sub Mat Fac Fac Fac Upp Upp Fac Total Allies 4 | . . . . 4 . . . . . Largest Group 4 | . . . . 4 . . . . . Highest-Rated Group 48 | . . . . 48 . . . . . Highest-Rated Ally 12 | . . . . 12 . . . . . Total Orders . | . . . . . . . . . . Ally Attacks 43 | . . . . 43 . . . . . Total Damage 517 | . . . . 517 . . . . . Kills 5 | . . . . 5 . . . . . Allies Corrupted . | . . . . . . . . . . Allies Melted 2 | . . 2 . . . . . . . Intel | -11 -10 -10 -8 -7 -6 -5 -5 -5 -4 ------- Run | Yrd Mat Sub Mat Fac Fac Fac Upp Upp Fac Robot Analysis Total 1 | . 1 . . . . . . . . Derelict Logs Recovered 3 | . . 1 . . . . 2 . . Drone Launches . | . . . . . . . . . . Drone Recoveries . | . . . . . . . . . . Exploration | -11 -10 -10 -8 -7 -6 -5 -5 -5 -4 ------------- Run | Yrd Mat Sub Mat Fac Fac Fac Upp Upp Fac Turns Passed 8742 | 119 582 386 307 2069 127 2322 1181 19 1630 Spaces Moved 4395 | 67 367 249 189 909 93 916 913 18 674 Core 16 | 14 . . . . . . . . 2 Treads 4 | . . . . 2 . . . . 2 Legs 2877 | 53 367 249 189 907 93 558 . . 461 Wheels 1217 | . . . . . . 82 913 18 204 Hover 281 | . . . . . . 276 . . 5 Flight . | . . . . . . . . . . Fastest Speed 50 | 50 120 120 120 120 120 99 99 101 101 Average Speed 132 | 105 120 120 120 142 127 163 100 101 138 Slowest Speed 1350 | 120 120 120 120 240 190 400 103 101 1350 Overloaded Moves . | . . . . . . . . . . Propulsion Burnouts . | . . . . . . . . . . Robots Hopped . | . . . . . . . . . . Cave-ins Triggered 1 | . . . . . . . . . 1 Exploration Rate (%) 22 | 4 52 12 21 20 4 19 71 7 18 Regions Visited 9 Branch Regions 3 Pre-discovered Areas 2 | . . 1 . . . . 1 . . Known Exits Taken 1 | . . . 1 . . . . . . Unknown Exits Taken 8 | 1 1 1 . 1 1 1 1 1 . Scrap Searched 4 | . . . . . . . 4 . . Spaces Dug 29 | . 4 . . 25 . . . . . Terrain Destroyed 282 | . 6 . . 25 . 142 54 . 55 Melee . | . . . . . . . . . . Projectile 71 | . 4 . . . . 9 3 . 55 AOE 211 | . 2 . . 25 . 133 51 . . Terrain Rammed . | . . . . . . . . . . Walls Destroyed . | . . . . . . . . . . Machines Disabled . | . . . . . . . . . . Actions | -11 -10 -10 -8 -7 -6 -5 -5 -5 -4 --------- Run | Yrd Mat Sub Mat Fac Fac Fac Upp Upp Fac Total 6717 | 113 446 291 257 1560 102 1629 1132 18 1169 Wait 1642 | 33 31 2 42 510 . 575 141 . 308 Move 4386 | 66 366 248 188 908 92 915 912 17 674 Hop . | . . . . . . . . . . Pick Up 111 | 7 10 4 6 19 2 24 21 . 18 Fast Attach 51 | 3 1 1 1 8 . 11 4 . 22 Attach 61 | 3 1 . 6 8 2 11 10 . 20 Detach 2 | . . . 2 . . . . . . Swap 99 | 1 4 9 5 31 4 19 13 1 12 Drop 109 | . 6 9 2 24 2 28 15 . 23 Fire 250 | . 27 18 5 47 . 46 16 . 91 Melee . | . . . . . . . . . . Ram 1 | . . . . . . . . . 1 Kick . | . . . . . . . . . . Crush . | . . . . . . . . . . Escape Stasis 5 | . . . . 5 . . . . . Rewire . | . . . . . . . . . . Trap . | . . . . . . . . . . Miscellaneous . | . . . . . . . . . . Route ------- -11/Scrapyard -10/Materials (discovered 3 exits: [*Mat] / [*Min] / [*Sub]) -10/Subcaves -8/Materials -7/Factory -6/Factory -5/Factory -5/Upper Caves -5/Upper Caves -4/Factory History --------- Turn | Location | Event 12 | -11/Scrapyard | Discovered new exit (range 15) 120 | -11/Scrapyard | Entered Materials 252 | -10/Materials | Discovered new exit (range 16) 308 | -10/Materials | Build established: Mutant 407 | -10/Materials | Discovered new exit (range 7) 513 | -10/Materials | Discovered new exit (range 12) 702 | -10/Materials | Entered Subcaves 704 | -10/Subcaves | Learned 2 Materials zone layouts 740 | -10/Subcaves | Learned location of Zion (-6) 740 | -10/Subcaves | Met a Zionite searching for "candidates" 777 | -10/Subcaves | A swath of the cavern ceiling suddenly collapsed 780 | -10/Subcaves | Ambushed by swarm of Subdwellers 820 | -10/Subcaves | Lost 5 allies 1058 | -10/Subcaves | Shifting Twisted Machinery released Sub. Laser 1060 | -10/Subcaves | Shifting Twisted Machinery released Sub. Monowheel 1068 | -10/Subcaves | Discovered new exit (range 13) 1088 | -10/Subcaves | Entered Materials 1088 | -8/Materials | Evolved 4 slots: Propulsion x2, Utility x1, Weapon x1 1089 | -8/Materials | Identified exit to Factory 1296 | -8/Materials | Repaired Carbon-fiber Leg 1395 | -8/Materials | Entered Factory 1395 | -7/Factory | Evolved 2 slots: Power x1, Utility x1 1514 | -7/Factory | Build established: Scavenger-Tank 1769 | -7/Factory | Lost 4 parts (1p1n1u1w) 2068 | -7/Factory | Repaired Carbon-fiber Leg 2246 | -7/Factory | Repaired Aluminum Leg 2273 | -7/Factory | Repaired Aluminum Leg 2670 | -7/Factory | Fabricated S-27 Virus (x4) 2878 | -7/Factory | Lost 4 allies 3450 | -7/Factory | Discovered new exit (range 13) 3464 | -7/Factory | Entered another Factory area 3464 | -6/Factory | Evolved 2 slots: Propulsion x1, Utility x1 3507 | -6/Factory | Discovered new exit (range 3) 3591 | -6/Factory | Entered another Factory area 3591 | -5/Factory | Evolved 2 slots: Utility x2 4989 | -5/Factory | Lost 3 parts (1n1u1w) 5904 | -5/Factory | Discovered new exit (range 11) 5913 | -5/Factory | Entered Upper Caves 6036 | -5/Upper Caves | Attracted the attention of an 0b10 outpost 6094 | -5/Upper Caves | Lost 8 parts (1p3n2u2w) 6163 | -5/Upper Caves | Learned location of Armory (-3) 6443 | -5/Upper Caves | Spotted B-75 Beast 6806 | -5/Upper Caves | Attracted the attention of an 0b10 checkpoint 6890 | -5/Upper Caves | Encountered a Warlord checkpoint 6950 | -5/Upper Caves | Learned Factory terminal intel 7066 | -5/Upper Caves | Discovered new exit (range 8) 7094 | -5/Upper Caves | Entered another Upper Caves area 7105 | -5/Upper Caves | Discovered new exit (range 8) 7113 | -5/Upper Caves | Entered Factory 7113 | -4/Factory | Evolved 2 slots: Propulsion x2 7114 | -4/Factory | Loaded intel: 26 terminal locations 7574 | -4/Factory | Lost 7 parts (1p5n1u) 8531 | -4/Factory | System corruption reached 10% 8554 | -4/Factory | Lost 3 parts (1p2n) 8598 | -4/Factory | Crushed by falling debris 8625 | -4/Factory | Core integrity fell below 50% 8663 | -4/Factory | System corruption reached 30% 8709 | -4/Factory | Core integrity fell below 20% 8743 | -4/Factory | Destroyed by G-67 Veteran with Plasma Rifle Last Messages --------------- Imp. Fusion Compressor broken. Overheating: Short circuit. G-67 Veteran overheating. Flexi-carbon Leg melted. G-67 Veteran destroyed. Acquired 60 matter. Wave Gun destroyed. Acquired Plasma Rifle. K-01 Serf collects debris. Flexi-carbon Leg destroyed. Tesla Rifle destroyed. System corrupted: Matter fused (-10). K-01 Serf cleans the Fabricator. HERF Cannon destroyed. K-01 Serf collects debris. Med. Storage Unit destroyed. K-01 Serf collects debris. P-70 Sage resets G-67 Veteran, system corruption cleaned. Mass Driver destroyed. Map ----- +----------------------------------------------------+ | % #?????????????????????????????????????? | | ##/#######???????????????????????????????? | | #####+### # ??????????????????????????????? | | # =! """ # #?????????????????????????????? | | # !! """ # #?????????????????????????????? | | # ! """ # #?????????????????????????????? | | # # #?????????????????????????????? | | """ + "" "" # #?????????????????????????????? | | # ""S"" # #?????????????????????????????? | | """ # """" !# #?????????????????????????????? | | # # #?????????????????????????????? | | ###############/## #???????##############????????? | | ???????? ?????# #???????# #????????? | | ????????? ????# #???????# #????????? | | ??????????????# #???????# #????????? | | ??????????????# ######### #????????? | | ??????????????# + #????????? | | ??????????????# # #????????? | | ??????????????# # #????????? | | ??????????????# + #????????? | | ??????????????# ############ #????????? | | ??????????????# ???????????# #????????? | | ??????????????# ??????????## #????????? | | ??????????????# ????????###"% % [ %[#????????? | | ??????????????# ####################/########????? | | ????????? ku s s ggps@gs% k % % | | ??????????????############# % % ^^ | | ??????????????????????????# % """"" | | ??????????????????????????# % "" F" | | ??????????????????????????# "" "" | | ??????????????????????????# ######### | | ??????????????????????????# """ """ ###?#"#???? | | ????????????????????????? """ """ #????# ????? | | ???????????????????????? """ """= #????? ???? | | ???????????????????????? % +?????? #??? | | ??????????????????????? %* #??????????? | | ?????????????????????? #??????????? | | ??????????????????????#######+###?? #??????????? | | ????????????????????????????? ???? ???????????? | | ????????????????????????????? ????? ???????????? | | ????????????????????????????? ????? ???????????? | | ?????????????????????????????? ??????????????????? | | ?????????????????????????????????????????????????? | | ?????????????????????????????????????????????????? | | ?????????????????????????????????????????????????? | | ????????????????????????????????????????????????T? | | ?????????????????????????????????????????????????? | | ?????????????????????????????????????????????????? | | ?????????????????????????????????????????????????? | | ?????????????????????????????????????????????????? | +----------------------------------------------------+ Best States ------------- Heat Dissipation 87 Coolant Potential 80 Energy Generation 45 Energy Capacity 1250 Matter Stores 300 Matter Capacity 300 Sight Range 16 Terrain Scan Density 10 Cloak Strength 2 Additional Mass Support 9 Armor Coverage 825 Resistance: EM 25 Propulsion Shielding 66 Phase Shifting 5 Evasion (%) 55 Recoil Reduction 1 Kinecelleration 40 Item Schematics ----------------- Mining Laser | -8/Materials | Scanalyzed Adv. Heat Sink | -4/Factory | Scanalyzed Robot Schematics ------------------ None Fabricated ------------ S-27 Virus | x4 | -7/Factory | Preloaded Alien Tech Used ----------------- None Achievements -------------- Dynamic Key My Command Is Your Wish Challenges ------------ None Game ------ Seed MiniAerolevCalibrator Manual? 0 Play Time 02:31:10 Cumulative 25.3 hours Start 2024.04.20 @ 19:24:11 End 2024.04.22 @ 22:37:30 Sessions 7 Manual Loads 0 Difficulty Rogue Special Mode None Game No. 16 Rogue 16 Adventurer 0 Explorer 0 Win Type - Total 0 Types 0/0/0/0/0/0/0/0/0 Lore% 20 Gallery% 29 Achievement% 22 Wizard Run 0 Options --------- Layout 1 ASCII 0 Keyboard 0 Movement Mouse Keybinds 0 Fullscreen 1 Font 24/Smallcaps Map View 50x35 Zoom Use 0% Tactical HUD 0 Map Filters NONE Filters NONE Steam 1 RUN: 0e4aa13e-ba51-4fdc-8e91-15aa6456b309